fUSD/lending_fUSD_20240114
["ID","MTS","AMOUNT","RATE_DAILY","PERIOD"]
[311600023,1705264254175,-500.0,0.00030136,2]
[311600024,1705264254186,-500.0,0.00030136,2]
[311600025,1705264254196,-500.0,0.00030136,2]
[311600026,1705264254205,-1060.69,0.00030136,2]
[311600027,1705264254215,-500.0,0.00030136,2]
[311600028,1705264254225,-500.0,0.00030136,2]
[311600029,1705264254235,-500.0,0.00030136,2]
[311600030,1705264254245,-500.0,0.00030136,2]
[311600031,1705264254255,-663.4,0.00030136,2]
[311600032,1705264254265,-500.0,0.00030136,2]
[311600033,1705264254274,-500.0,0.00030136,2]
[311600034,1705264254284,-500.0,0.00030136,2]
[311600035,1705264254293,-500.0,0.00030136,2]
[311600036,1705264254302,-500.0,0.00030136,2]
[311600037,1705264254314,-500.0,0.00030136,2]
[311600038,1705264254323,-500.0,0.00030136,2]
[311600039,1705264254333,-500.0,0.00030136,2]
[311600040,1705264254344,-1567.33,0.00030136,2]
[311600041,1705264254354,-500.8319926,0.00030136,2]
[311600042,1705264254364,-500.0,0.00030136,2]
[311600043,1705264254374,-690.39,0.00030136,2]
[311600044,1705264254384,-507.53,0.00030136,2]
[311600045,1705264254393,-1087.14,0.00030136,2]
[311600046,1705264254402,-430.21357631,0.00030136,2]
[311600047,1705264254413,-780.22,0.00030136,2]
[311600048,1705264254423,-1031.89,0.00030136,2]
[311600049,1705264254432,-500.0,0.00030136,2]
[311600050,1705264254442,-500.0,0.00030136,2]
[311600051,1705264254452,-968.33,0.00030136,2]
[311600052,1705264254462,-500.0,0.00030136,2]
[311600053,1705264254472,-500.0,0.00030136,2]
[311600054,1705264254481,-15692.02,0.00030136,2]
[311600055,1705264254491,-500.0,0.00030136,2]
[311600056,1705264254500,-720.95,0.00030136,2]
[311600057,1705264254510,-500.0,0.00030136,2]
[311600058,1705264254519,-500.0,0.00030136,2]
[311600059,1705264254529,-500.0,0.00030136,2]
[311600060,1705264254538,-4778.91,0.00030136,2]
[311600061,1705264254548,-500.0,0.00030136,2]
[311600062,1705264254557,-500.0,0.00030136,2]
[311600063,1705264254567,-4080.55,0.00030136,2]
[311600064,1705264254576,-500.0,0.00030136,2]
[311600065,1705264254586,-524.66,0.00030136,2]
[311600066,1705264254595,-507.39912729,0.00030136,2]
[311600067,1705264254604,-1610.45,0.00030136,2]
[311600068,1705264254614,-1037.02,0.00030136,2]
[311600069,1705264254623,-500.0,0.00030136,2]
[311600070,1705264254632,-500.0,0.00030136,2]
[311600071,1705264254642,-500.0,0.00030136,2]
[311600072,1705264254651,-500.0,0.00030136,2]
[311600073,1705264254661,-500.0,0.00030136,2]
[311600074,1705264254670,-500.0,0.00030136,2]
[311600075,1705264254680,-500.0,0.00030136,2]
[311600076,1705264254689,-500.0,0.00030136,2]
[311600077,1705264254700,-500.0,0.00030136,2]
[311600078,1705264254710,-753.69,0.00030136,2]
[311600079,1705264254721,-512.48,0.00030136,2]
[311600080,1705264254730,-819.18,0.00030136,2]
[311600081,1705264254739,-658.91,0.00030136,2]
[311600082,1705264254749,-500.0,0.00030136,2]
[311600083,1705264254758,-922.23,0.00030136,2]
[311600084,1705264254768,-638.69874459,0.00030136,2]
[311600085,1705264254777,-1259.43,0.00030136,2]
[311600086,1705264254786,-500.0,0.00030136,2]
[311600087,1705264254795,-908.29,0.00030136,2]
[311600088,1705264254805,-500.0,0.00030136,2]
[311600089,1705264254814,-500.0,0.00030136,2]
[311600090,1705264254823,-500.0,0.00030136,2]
[311600091,1705264254832,-500.0,0.00030136,2]
[311600092,1705264254842,-500.0,0.00030136,2]
[311600093,1705264254851,-500.0,0.00030136,2]
[311600094,1705264254861,-500.0,0.00030136,2]
[311600095,1705264254870,-500.0,0.00030136,2]
[311600096,1705264254879,-500.0,0.00030136,2]
[311600097,1705264254888,-500.0,0.00030136,2]
[311600098,1705264254898,-500.0,0.00030136,2]
[311600099,1705264254907,-500.0,0.00030136,2]
[311600100,1705264254916,-500.0,0.00030136,2]
[311600101,1705264254925,-500.0,0.00030136,2]
[311600102,1705264254934,-500.0,0.00030136,2]
[311600103,1705264254943,-500.0,0.00030136,2]
[311600104,1705264254952,-500.0,0.00030136,2]
[311600105,1705264254961,-500.0,0.00030136,2]
[311600106,1705264254971,-500.0,0.00030136,2]
[311600107,1705264254981,-1934.5,0.00030136,2]
[311600108,1705264254991,-242.10638372,0.00030136,2]
[311600109,1705264255000,-500.0,0.00030136,2]
[311600110,1705264255010,-500.0,0.00030136,2]
[311600111,1705264255020,-500.0,0.00030136,2]
[311600112,1705264255030,-159.31912069,0.00030136,2]
[311600113,1705264255040,-1552.56,0.00030136,2]
[311600114,1705264255050,-500.0,0.00030136,2]
[311600115,1705264255059,-500.0,0.00030136,2]
[311600116,1705264255069,-500.0,0.00030136,2]
[311600117,1705264255080,-500.0,0.00030136,2]
[311600118,1705264255091,-1783.71,0.00030136,2]
[311600119,1705264255101,-500.0,0.00030136,2]
[311600120,1705264255110,-2053.34851141,0.00030136,2]
[311600121,1705264255121,-500.0,0.00030136,2]
[311600122,1705264255131,-500.0,0.00030136,2]
[311600123,1705264255144,-500.0,0.00030136,2]
[311600124,1705264255154,-500.0,0.00030136,2]
[311600125,1705264255164,-813.78,0.00030136,2]
[311600126,1705264255174,-508.7,0.00030136,2]
[311600127,1705264255183,-500.0,0.00030136,2]
[311600128,1705264255193,-1672.88,0.00030136,2]
[311600129,1705264255202,-182.98664842,0.00030136,2]
[311600130,1705264255212,-887.69,0.00030136,2]
[311600131,1705264255221,-500.0,0.00030136,2]
[311600132,1705264255330,-502.01949359,0.00030136,2]
[311600133,1705264255342,-1426.72,0.00030136,2]
[311600134,1705264255351,-1249.33,0.00030136,2]
[311600135,1705264255360,-1118.87,0.00030136,2]
[311600136,1705264255369,-500.0,0.00030136,2]
[311600137,1705264255379,-500.0,0.00030136,2]
[311600138,1705264255388,-5627.11,0.00030136,2]
[311600139,1705264255397,-1369.47,0.00030136,2]
[311600140,1705264255406,-500.0,0.00030136,2]
[311600141,1705264255415,-575.47,0.00030136,2]
[311600142,1705264255424,-500.0,0.00030136,2]
[311600143,1705264255433,-500.0,0.00030136,2]
[311600144,1705264255443,-500.0,0.00030136,2]
[311600145,1705264255451,-567.98,0.00030136,2]
[311600146,1705264255461,-570.84,0.00030136,2]
[311600147,1705264255470,-500.0,0.00030136,2]
[311600148,1705264255480,-500.0,0.00030136,2]
[311600149,1705264255489,-500.0,0.00030136,2]
[311600150,1705264255498,-552.23,0.00030136,2]
[311600151,1705264255506,-500.0,0.00030136,2]
[311600152,1705264255515,-599.67,0.00030136,2]
[311600153,1705264255525,-682.29,0.00030136,2]
[311600154,1705264255534,-500.0,0.00030136,2]
[311600155,1705264255543,-500.0,0.00030136,2]
[311600156,1705264255553,-799.56,0.00030136,2]
[311600157,1705264255563,-2554.34,0.00030136,2]
[311600158,1705264255572,-1798.17,0.00030136,2]
[311600159,1705264255581,-1153.92,0.00030136,2]
[311600160,1705264255590,-500.0,0.00030136,2]
[311600161,1705264255600,-500.0,0.00030136,2]
[311600162,1705264255608,-570.96865396,0.00030136,2]
[311600163,1705264255618,-500.0,0.00030136,2]
[311600164,1705264255627,-2674.9,0.00030136,2]
[311600165,1705264255637,-500.0,0.00030136,2]
[311600166,1705264255646,-500.0,0.00030136,2]
[311600167,1705264255655,-4747.99,0.00030136,2]
[311600168,1705264255664,-500.0,0.00030136,2]
[311600169,1705264255673,-500.0,0.00030136,2]
[311600170,1705264255682,-500.0,0.00030136,2]
[311600171,1705264255691,-500.0,0.00030136,2]
[311600172,1705264255700,-500.0,0.00030136,2]
[311600173,1705264255709,-874.04,0.00030136,2]
[311600174,1705264255718,-500.0,0.00030136,2]
[311600175,1705264255727,-3082.22,0.00030136,2]
[311600176,1705264255737,-522.44,0.00030136,2]
[311600177,1705264255746,-500.0,0.00030136,2]
[311600178,1705264255755,-500.0,0.00030136,2]
[311600179,1705264255765,-1501.1,0.00030136,2]
[311600180,1705264255774,-2400.47,0.00030136,2]
[311600181,1705264255783,-500.0,0.00030136,2]
[311600182,1705264255792,-953.45,0.00030136,2]
[311600183,1705264255801,-500.0,0.00030136,2]
[311600184,1705264255810,-1591.7,0.00030136,2]
[311600185,1705264255819,-500.0,0.00030136,2]
[311600186,1705264255828,-500.0,0.00030136,2]
[311600187,1705264255837,-500.0,0.00030136,2]
[311600188,1705264255849,-500.0,0.00030136,2]
[311600189,1705264255858,-500.0,0.00030136,2]
[311600190,1705264255867,-1195.23,0.00030136,2]
[311600191,1705264255876,-500.0,0.00030136,2]
[311600192,1705264255885,-175.82629208,0.00030136,2]
[311600193,1705264255894,-500.0,0.00030136,2]
[311600194,1705264255903,-500.0,0.00030136,2]
[311600195,1705264255912,-830.52,0.00030136,2]
[311600196,1705264255921,-645.86,0.00030136,2]
[311600197,1705264255931,-500.0,0.00030136,2]
[311600198,1705264255940,-500.0,0.00030136,2]
[311600199,1705264255949,-500.0,0.00030136,2]
[311600200,1705264255958,-500.0,0.00030136,2]
[311600201,1705264255968,-308.46,0.00030136,2]
[311600202,1705264255977,-289.41071066,0.00030136,2]
[311600203,1705264255986,-552.65,0.00030136,2]
[311600204,1705264255996,-1563.61,0.00030136,2]
[311600205,1705264256005,-500.0,0.00030136,2]
[311600206,1705264256014,-500.0,0.00030136,2]
[311600207,1705264256024,-500.0,0.00030136,2]
[311600208,1705264256034,-500.0,0.00030136,2]
[311600209,1705264256043,-3852.95,0.00030136,2]
[311600210,1705264256052,-1788.89,0.00030136,2]
[311600211,1705264256061,-269.7734797,0.00030136,2]
[311600212,1705264256071,-500.0,0.00030136,2]
[311600213,1705264256080,-500.0,0.00030136,2]
[311600214,1705264256091,-3780.57,0.00030136,2]
[311600215,1705264256100,-500.0,0.00030136,2]
[311600216,1705264256109,-689.0,0.00030136,2]
[311600217,1705264256119,-479.86634886,0.00030136,2]
[311600218,1705264256129,-3887.42,0.00030136,2]
[311600219,1705264256140,-500.0,0.00030136,2]
[311600220,1705264256149,-500.0,0.00030136,2]
[311600221,1705264256159,-1026.83,0.00030136,2]
[311600222,1705264256169,-1077.68,0.00030136,2]
[311600223,1705264256179,-500.0,0.00030136,2]
[311600224,1705264256188,-543.18,0.00030136,2]
[311600225,1705264256197,-500.0,0.00030136,2]
[311600226,1705264256207,-500.0,0.00030136,2]
[311600227,1705264256216,-8222.74,0.00030136,2]
[311600228,1705264256226,-500.0,0.00030136,2]
[311600229,1705264256235,-706.36,0.00030136,2]
[311600230,1705264256245,-500.0,0.00030136,2]
[311600231,1705264256254,-163.25568737,0.00030136,2]
[311600232,1705264256262,-501.21569037,0.00030136,2]
[311600233,1705264256272,-500.0,0.00030136,2]
[311600234,1705264256280,-1212.77,0.00030136,2]
[311600235,1705264256289,-3010.13,0.00030136,2]
[311600236,1705264256299,-500.0,0.00030136,2]
[311600237,1705264256308,-1605.08,0.00030136,2]
[311600238,1705264256317,-500.0,0.00030136,2]
[311600239,1705264256326,-500.0,0.00030136,2]
[311600240,1705264256335,-550.18095957,0.00030136,2]
[311600241,1705264256345,-500.0,0.00030136,2]
[311600242,1705264256354,-500.0,0.00030136,2]
[311600243,1705264256363,-967.6,0.00030136,2]
[311600244,1705264256373,-913.46,0.00030136,2]
[311600245,1705264256382,-500.0,0.00030136,2]
[311600246,1705264256391,-3703.12,0.00030136,2]
[311600247,1705264256400,-379.68,0.00030136,2]
[311600248,1705264256410,-500.0,0.00030136,2]
[311600249,1705264256419,-583.22,0.00030136,2]
[311600250,1705264256428,-500.0,0.00030136,2]
[311600251,1705264256438,-30649.83,0.00030136,2]
[311600252,1705264256447,-500.0,0.00030136,2]
[311600253,1705264256457,-500.0,0.00030136,2]
[311600254,1705264256466,-500.0,0.00030136,2]
[311600255,1705264256475,-3434.07,0.00030136,2]
[311600256,1705264256485,-500.0,0.00030136,2]
[311600257,1705264256495,-500.0,0.00030136,2]
[311600258,1705264256504,-965.74,0.00030136,2]
[311600259,1705264256514,-500.0,0.00030136,2]
[311600260,1705264256523,-578.03,0.00030136,2]
[311600261,1705264256533,-1729.11,0.00030136,2]
[311600262,1705264256543,-500.0,0.00030136,2]
[311600263,1705264256552,-500.0,0.00030136,2]
[311600264,1705264256561,-11897.09,0.00030136,2]
[311600265,1705264256571,-500.0,0.00030136,2]
[311600266,1705264256580,-842.61,0.00030136,2]
[311600267,1705264256589,-1027.7,0.00030136,2]
[311600268,1705264256600,-500.0,0.00030136,2]
[311600269,1705264256609,-500.0,0.00030136,2]
[311600270,1705264256618,-500.0,0.00030136,2]
[311600271,1705264256626,-500.0,0.00030136,2]
[311600272,1705264256636,-6230.07,0.00030136,2]
[311600273,1705264256644,-500.0,0.00030136,2]
[311600274,1705264256654,-500.0,0.00030136,2]
[311600275,1705264256664,-500.0,0.00030136,2]
[311600276,1705264256673,-500.0,0.00030136,2]
[311600277,1705264256682,-1130.45,0.00030136,2]
[311600278,1705264256691,-500.0,0.00030136,2]
[311600279,1705264256701,-1353.14,0.00030136,2]
[311600280,1705264256710,-500.0,0.00030136,2]
[311600281,1705264256719,-500.0,0.00030136,2]
[311600282,1705264256729,-500.0,0.00030136,2]
[311600283,1705264256738,-500.0,0.00030136,2]
[311600284,1705264256748,-500.0,0.00030136,5]
[311600285,1705264256757,-500.0,0.00030136,2]
[311600286,1705264256767,-500.0,0.00030136,2]
[311600287,1705264256775,-3435.49,0.00030136,2]
[311600288,1705264256785,-500.0,0.00030136,2]
[311600289,1705264256794,-500.0,0.00030136,2]
[311600290,1705264256803,-500.0,0.00030136,2]
[311600291,1705264256812,-500.0,0.00030136,2]
[311600292,1705264256822,-500.0,0.00030136,2]
[311600293,1705264256833,-500.0,0.00030136,2]
[311600294,1705264256842,-500.0,0.00030136,2]
[311600295,1705264256852,-644.33,0.00030136,2]
[311600296,1705264256861,-573.71,0.00030136,2]
[311600297,1705264256870,-500.0,0.00030136,2]
[311600298,1705264256879,-500.55913506,0.00030136,2]
[311600299,1705264256888,-2448.9,0.00030136,2]
[311600300,1705264256897,-500.0,0.00030136,2]
[311600301,1705264256907,-3036.82,0.00030136,2]
[311600302,1705264256916,-597.1,0.00030136,2]
[311600303,1705264256925,-750.17,0.00030136,2]
[311600304,1705264256934,-500.0,0.00030136,2]
[311600305,1705264256943,-828.04,0.00030136,2]
[311600306,1705264256953,-2478.07,0.00030136,2]
[311600307,1705264256962,-500.0,0.00030136,2]
[311600308,1705264256972,-1871.96,0.00030136,2]
[311600309,1705264256981,-801.45,0.00030136,2]
[311600310,1705264256990,-1895.33,0.00030136,2]
[311600311,1705264256999,-500.0,0.00030136,2]
[311600312,1705264257011,-1560.14,0.00030136,2]
[311600313,1705264257020,-3224.85,0.00030136,2]
[311600314,1705264257030,-533.31,0.00030136,2]
[311600315,1705264257040,-500.60304431,0.00030136,2]
[311600316,1705264257049,-500.0,0.00030136,2]
[311600317,1705264257058,-5325.11,0.00030136,2]
[311600318,1705264257068,-500.0,0.00030136,2]
[311600319,1705264257077,-1784.8,0.00030136,2]
[311600320,1705264257086,-949.53,0.00030136,2]
[311600321,1705264257096,-730.14,0.00030136,2]
[311600322,1705264257105,-500.0,0.00030136,2]
[311600323,1705264257114,-1488.85,0.00030136,2]
[311600324,1705264257123,-500.0,0.00030136,2]
[311600325,1705264257132,-847.15,0.00030136,2]
[311600326,1705264257141,-500.0,0.00030136,2]
[311600327,1705264257151,-2331.02,0.00030136,2]
[311600328,1705264257161,-787.16,0.00030136,2]
[311600329,1705264257170,-841.76,0.00030136,2]
[311600330,1705264257179,-1513.17,0.00030136,2]
[311600331,1705264257188,-500.0,0.00030136,2]
[311600332,1705264257198,-524.76,0.00030136,2]
[311600333,1705264257207,-1046.23,0.00030136,2]
[311600334,1705264257216,-611.14,0.00030136,2]
[311600335,1705264257225,-1523.32,0.00030136,2]
[311600336,1705264257234,-500.0,0.00030136,2]
[311600337,1705264257243,-500.0,0.00030136,2]
[311600338,1705264257252,-500.66773759,0.00030136,2]
[311600339,1705264257261,-500.0,0.00030136,2]
[311600340,1705264257270,-4188.56,0.00030136,2]
[311600341,1705264257279,-500.0,0.00030136,2]
[311600342,1705264257288,-500.0,0.00030136,2]
[311600343,1705264257297,-500.0,0.00030136,2]
[311600344,1705264257307,-2000.73,0.00030136,2]
[311600345,1705264257317,-1059.93,0.00030136,2]
[311600346,1705264257327,-1556.83,0.00030136,2]
[311600347,1705264257337,-294.62688117,0.00030136,2]
[311600348,1705264257347,-559.75,0.00030136,2]
[311600349,1705264257356,-500.0,0.00030136,2]
[311600350,1705264257365,-1572.81,0.00030136,2]
[311600351,1705264257375,-593.18,0.00030136,2]
[311600352,1705264257385,-790.76,0.00030136,2]
[311600353,1705264257395,-1000.0,0.00030136,2]
[311600354,1705264257404,-500.0,0.00030136,2]
[311600355,1705264257413,-722.19,0.00030136,2]
[311600356,1705264257422,-500.0,0.00030136,2]
[311600357,1705264257431,-500.0,0.00030136,2]
[311600358,1705264257439,-1160.27,0.00030136,2]
[311600359,1705264257448,-500.0,0.00030136,2]
[311600360,1705264257457,-500.0,0.00030136,2]
[311600361,1705264257467,-500.0,0.00030136,2]
[311600362,1705264257476,-500.0,0.00030136,2]
[311600363,1705264257485,-613.87322824,0.00030136,2]
[311600364,1705264257494,-1333.04,0.00030136,2]
[311600365,1705264257503,-10911.16,0.00030136,2]
[311600366,1705264257512,-546.03632315,0.00030136,2]
[311600367,1705264257521,-500.0,0.00030136,2]
[311600368,1705264257530,-2072.02,0.00030136,2]
[311600369,1705264257539,-500.0,0.00030136,2]
[311600370,1705264257548,-711.46,0.00030136,2]
[311600371,1705264257557,-4765.57,0.00030136,2]
[311600372,1705264257567,-500.0,0.00030136,2]
[311600373,1705264257576,-500.0,0.00030136,2]
[311600374,1705264257585,-500.0,0.00030136,2]
[311600375,1705264257594,-500.0,0.00030136,2]
[311600376,1705264257603,-568.95,0.00030136,2]
[311600377,1705264257613,-500.0,0.00030136,2]
[311600378,1705264257623,-500.0,0.00030136,2]
[311600379,1705264257632,-1038.07,0.00030136,2]
[311600380,1705264257641,-500.0,0.00030136,2]
[311600381,1705264257650,-500.0,0.00030136,2]
[311600382,1705264257659,-7269.33,0.00030136,2]
[311600383,1705264257668,-6925.8,0.00030136,2]
[311600384,1705264257678,-500.0,0.00030136,2]
[311600385,1705264257687,-500.0,0.00030136,2]
[311600386,1705264257696,-500.0,0.00030136,2]
[311600387,1705264257707,-1179.24,0.00030136,2]
[311600388,1705264257717,-500.0,0.00030136,2]
[311600389,1705264257726,-775.66,0.00030136,2]
[311600390,1705264257735,-1868.67,0.00030136,2]
[311600391,1705264257745,-500.0,0.00030136,2]
[311600392,1705264257755,-1572.91,0.00030136,2]
[311600393,1705264257764,-500.0,0.00030136,2]
[311600394,1705264257773,-1049.48,0.00030136,2]
[311600395,1705264257783,-500.0,0.00030136,2]
[311600396,1705264257793,-756.09,0.00030136,2]
[311600397,1705264257802,-500.0,0.00030136,2]
[311600398,1705264257811,-500.0,0.00030136,2]
[311600399,1705264257820,-1736.87,0.00030136,2]
[311600400,1705264257830,-1088.94,0.00030136,2]
[311600401,1705264257839,-500.0,0.00030136,2]
[311600402,1705264257848,-660.67,0.00030136,2]
[311600403,1705264257857,-1917.76,0.00030136,2]
[311600404,1705264257866,-3692.47,0.00030136,2]
[311600405,1705264257875,-500.0,0.00030136,2]
[311600406,1705264257884,-500.0,0.00030136,2]
[311600407,1705264257893,-500.0,0.00030136,2]
[311600408,1705264257902,-500.0,0.00030136,2]
[311600409,1705264257911,-1883.84,0.00030136,2]
[311600410,1705264257920,-500.0,0.00030136,2]
[311600411,1705264257929,-500.0,0.00030136,2]
[311600412,1705264257938,-500.0,0.00030136,2]
[311600413,1705264257947,-500.0,0.00030136,2]
[311600414,1705264257956,-3549.24,0.00030136,2]
[311600415,1705264257966,-500.0,0.00030136,2]
[311600416,1705264257975,-500.0,0.00030136,2]
[311600417,1705264257984,-500.0,0.00030136,2]
[311600418,1705264257993,-1639.07,0.00030136,2]
[311600419,1705264258002,-726.79,0.00030136,2]
[311600420,1705264258011,-500.0,0.00030136,2]
[311600421,1705264258021,-1673.99,0.00030136,2]
[311600422,1705264258030,-500.0,0.00030136,2]
[311600423,1705264258039,-500.0,0.00030136,2]
[311600424,1705264258077,-500.0,0.00030136,2]
[311600425,1705264258087,-1877.85,0.00030136,2]
[311600426,1705264258097,-19757.41,0.00030136,2]
[311600427,1705264258107,-500.0,0.00030136,2]
[311600428,1705264258116,-2271.06,0.00030136,2]
[311600429,1705264258125,-500.0,0.00030136,2]
[311600430,1705264258138,-2078.93,0.00030136,2]
[311600431,1705264258148,-500.0,0.00030136,2]
[311600432,1705264258158,-500.0,0.00030136,2]
[311600433,1705264258168,-500.0,0.00030136,2]
[311600434,1705264258178,-500.0,0.00030136,2]
[311600435,1705264258189,-766.43,0.00030136,2]
[311600436,1705264258199,-862.55,0.00030136,2]
[311600437,1705264258209,-500.0,0.00030136,2]
[311600438,1705264258221,-1101.05,0.00030136,2]
[311600439,1705264258231,-500.0,0.00030136,2]
[311600440,1705264258243,-500.0,0.00030136,2]
[311600441,1705264258253,-500.0,0.00030136,2]
[311600442,1705264258262,-1066.09,0.00030136,2]
[311600443,1705264258271,-500.0,0.00030136,2]
[311600444,1705264258281,-1259.5,0.00030136,2]
[311600445,1705264258291,-648.66,0.00030136,2]
[311600446,1705264258301,-500.0,0.00030136,2]
[311600447,1705264258310,-3155.7,0.00030136,2]
[311600448,1705264258320,-500.0,0.00030136,2]
[311600449,1705264258331,-500.0,0.00030136,2]
[311600450,1705264258342,-274.27555255,0.00030136,2]
[311600451,1705264258354,-1899.34,0.00030136,2]
[311600452,1705264258365,-500.0,0.00030136,2]
[311600453,1705264258375,-1672.54,0.00030136,2]
[311600454,1705264258385,-541.14,0.00030136,2]
[311600455,1705264258394,-500.0,0.00030136,2]
[311600456,1705264258404,-500.0,0.00030136,2]
[311600457,1705264258414,-612.36,0.00030136,2]
[311600458,1705264258423,-500.0,0.00030136,2]
[311600459,1705264258432,-1740.09,0.00030136,2]
[311600460,1705264258442,-500.63849218,0.00030136,2]
[311600461,1705264258450,-221.91371723,0.00030136,2]
[311600462,1705264258459,-920.75,0.00030136,2]
[311600463,1705264258468,-500.0,0.00030136,2]
[311600464,1705264258477,-500.0,0.00030136,2]
[311600465,1705264258486,-3991.14,0.00030136,2]
[311600466,1705264258496,-510.63341331,0.00030136,2]
[311600467,1705264258505,-10488.2,0.00030136,2]
[311600468,1705264258515,-1101.91,0.00030136,2]
[311600469,1705264258524,-1042.12,0.00030136,2]
[311600470,1705264258533,-1103.01,0.00030136,2]
[311600471,1705264258542,-956.24,0.00030136,2]
[311600472,1705264258552,-500.0,0.00030136,2]
[311600473,1705264258561,-896.85,0.00030136,2]
[311600474,1705264258570,-517.98137171,0.00030136,2]
[311600475,1705264258579,-500.0,0.00030136,2]
[311600476,1705264258588,-3953.12,0.00030136,2]
[311600477,1705264258598,-500.0,0.00030136,2]
[311600478,1705264258607,-502.38572587,0.00030136,2]
[311600479,1705264258616,-1033.26,0.00030136,2]
[311600480,1705264258625,-500.0,0.00030136,2]
[311600481,1705264258634,-2574.62,0.00030136,2]
[311600482,1705264258643,-1533.7,0.00030136,2]
[311600483,1705264258653,-500.0,0.00030136,2]
[311600484,1705264258665,-500.0,0.00030136,2]
[311600485,1705264258673,-500.0,0.00030136,2]
[311600486,1705264258682,-2093.22,0.00030136,2]
[311600487,1705264258691,-882.31,0.00030136,2]
[311600488,1705264258700,-500.0,0.00030136,2]
[311600489,1705264258709,-1449.1,0.00030136,2]
[311600490,1705264258718,-500.0,0.00030136,2]
[311600491,1705264258727,-664.21,0.00030136,2]
[311600492,1705264258736,-500.0,0.00030136,2]
[311600493,1705264258746,-526.99,0.00030136,2]
[311600494,1705264258754,-501.95857793,0.00030136,2]
[311600495,1705264258763,-808.11,0.00030136,2]
[311600496,1705264258772,-2286.6,0.00030136,2]
[311600497,1705264258781,-732.92,0.00030136,2]
[311600498,1705264258790,-918.48,0.00030136,2]
[311600499,1705264258799,-500.0,0.00030136,2]
[311600500,1705264258808,-1602.23,0.00030136,2]
[311600501,1705264258817,-502.97110435,0.00030136,2]
[311600502,1705264258826,-500.0,0.00030136,2]
[311600503,1705264258835,-531.09,0.00030136,2]
[311600504,1705264258847,-500.0,0.00030136,2]
[311600505,1705264258856,-567.37,0.00030136,2]
[311600506,1705264258865,-500.0,0.00030136,2]
[311600507,1705264258874,-500.0,0.00030136,2]
[311600508,1705264258883,-500.0,0.00030136,2]
[311600509,1705264258892,-2009.84,0.00030136,2]
[311600510,1705264258901,-500.0,0.00030136,2]
[311600511,1705264258910,-500.0,0.00030136,2]
[311600512,1705264258919,-500.0,0.00030136,2]
[311600513,1705264258928,-500.0,0.00030136,2]
[311600514,1705264258938,-500.0,0.00030136,2]
[311600515,1705264258947,-500.0,0.00030136,2]
[311600516,1705264258957,-500.0,0.00030136,2]
[311600517,1705264258966,-272.66798799,0.00030136,2]
[311600518,1705264258975,-1108.45,0.00030136,2]
[311600519,1705264258984,-1201.65,0.00030136,2]
[311600520,1705264258993,-4796.3,0.00030136,2]
[311600521,1705264259003,-549.32,0.00030136,2]
[311600522,1705264259012,-512.33,0.00030136,2]